bitfinex/quotes_BTCUSD_20251016
["timestamp","ask_amount","ask_price","bid_price","bid_amount"]
[1760654786422,0.37063617,108130.0,108110.0,0.18498261]
[1760654786628,0.61465266,108130.0,108120.0,0.40743236]
[1760654786800,0.18497965,108120.0,108110.0,0.59241497]
[1760654788499,0.61465266,108130.0,108120.0,0.18497965]
[1760654788659,0.18497965,108120.0,108110.0,0.59241497]
[1760654788883,0.62520649,108130.0,108110.0,0.59241497]
[1760654789089,0.18497965,108120.0,108110.0,0.59241497]
[1760654789634,0.61465266,108130.0,108110.0,0.59241497]
[1760654789836,0.61465266,108130.0,108120.0,0.18497965]
[1760654789992,0.27465266,108130.0,108120.0,0.59241201]
[1760654790194,0.18496254,108130.0,108120.0,0.59241201]
[1760654794578,0.22461661,108140.0,108120.0,0.59241201]
[1760654794786,0.63438013,108140.0,108130.0,0.40743236]
[1760654794990,0.65430673,108140.0,108130.0,0.40743236]
[1760654795262,0.64380943,108140.0,108130.0,0.40743236]
[1760654795814,0.65438027,108140.0,108130.0,0.40743236]
[1760654796133,0.64380943,108140.0,108130.0,0.40743236]
[1760654796479,0.18496254,108130.0,108120.0,0.59241201]
[1760654797594,0.18389254,108130.0,108120.0,0.59241201]
[1760654797832,0.65425567,108140.0,108120.0,0.99984437]
[1760654798138,0.65425567,108140.0,108130.0,0.40743236]
[1760654804760,0.18496254,108130.0,108120.0,0.59241201]
[1760654806550,0.65425567,108140.0,108120.0,0.99984437]
[1760654806759,0.65425567,108140.0,108130.0,0.40743236]
[1760654807514,0.67915177,108140.0,108130.0,0.40743236]
[1760654808345,0.65425567,108140.0,108130.0,0.40743236]
[1760654809245,0.18496254,108130.0,108120.0,0.18497965]
[1760654809421,0.18496254,108130.0,108120.0,0.59241201]
[1760654810736,0.18496254,108130.0,108120.0,0.18497965]
[1760654811143,0.5923949,108130.0,108120.0,0.18497965]
[1760654811348,0.5923949,108130.0,108110.0,0.18499676]
[1760654811349,0.18497965,108120.0,108110.0,0.18499676]
[1760654811751,0.18497965,108120.0,108100.0,0.60169692]
[1760654811953,0.18497965,108120.0,108100.0,0.60023648]
[1760654812783,0.18497965,108120.0,108110.0,0.18499676]
[1760654813712,0.18499676,108110.0,108100.0,0.00013956]
[1760654813959,0.27468688,108110.0,108100.0,0.00013956]
[1760654814146,0.27468688,108110.0,108100.0,0.18515343]
[1760654814543,0.27468688,108110.0,108100.0,0.59258579]
[1760654817039,0.0199266,108120.0,108110.0,0.18499676]
[1760654817239,0.27466977,108120.0,108110.0,0.59242912]
[1760654817857,0.27466977,108120.0,108110.0,0.40743236]
[1760654818263,0.27466977,108120.0,108110.0,0.59242912]
[1760654818670,0.08969012,108120.0,108110.0,0.59242912]
[1760654818831,0.54488914,108130.0,108110.0,0.59242912]
[1760654819036,0.18497965,108120.0,108110.0,0.18499676]
[1760654819240,0.63457926,108130.0,108110.0,0.59242912]
[1760654819481,0.29457926,108130.0,108120.0,0.59241201]
[1760654819640,0.18496254,108130.0,108120.0,0.59241201]
[1760654821089,0.18496254,108130.0,108120.0,0.18497965]
[1760654821409,0.18496254,108130.0,108110.0,0.18499676]
[1760654821720,0.18496254,108130.0,108110.0,0.59242006]
[1760654821721,0.18498101,108120.0,108110.0,0.59242006]
[1760654821951,0.20488914,108130.0,108110.0,0.59242006]
[1760654822398,0.20488914,108130.0,108120.0,0.40743236]
[1760654822618,0.20488914,108130.0,108120.0,0.59241201]
[1760654822845,0.18496254,108130.0,108120.0,0.59241201]
[1760654823423,0.18496254,108130.0,108110.0,0.59242006]
[1760654823652,0.18496254,108130.0,108120.0,0.40743236]
[1760654824372,0.18497965,108120.0,108110.0,0.59242006]
[1760654825470,0.18497965,108120.0,108110.0,0.1849877]
[1760654825745,0.18497965,108120.0,108110.0,0.59242006]
[1760654826221,0.18497965,108120.0,108100.0,0.60183648]
[1760654826436,0.18499676,108110.0,108100.0,0.40757192]
[1760654826664,0.18499676,108110.0,108100.0,0.00013956]
[1760654826878,0.18499676,108110.0,108100.0,0.59258579]
[1760654827310,0.29459637,108120.0,108100.0,0.59258579]
[1760654827525,0.18499676,108110.0,108100.0,0.59258579]
[1760654829528,0.18499676,108110.0,108100.0,0.59241277]
[1760654831474,0.29459637,108120.0,108100.0,0.59241277]
[1760654831699,0.27466977,108120.0,108100.0,0.59241277]
[1760654831926,0.18499676,108110.0,108100.0,0.59241277]
[1760654832852,0.29459637,108120.0,108100.0,0.59241277]
[1760654833056,0.27466977,108120.0,108110.0,0.40725934]
[1760654833663,0.27466977,108120.0,108110.0,0.5922561]
[1760654833868,0.08969012,108120.0,108110.0,0.5922561]
[1760654834077,0.53421066,108130.0,108120.0,0.18497965]
[1760654834259,0.64382738,108130.0,108120.0,0.59223899]
[1760654834500,0.10961672,108130.0,108120.0,0.59223899]
[1760654834821,0.27465266,108130.0,108120.0,0.59223899]
[1760654835390,0.08969012,108130.0,108120.0,0.59223899]
[1760654835797,0.18496254,108130.0,108120.0,0.59223899]
[1760654836005,0.18496254,108130.0,108120.0,0.40725934]
[1760654836814,0.18496254,108130.0,108120.0,0.59223899]
[1760654837824,0.57901541,108140.0,108130.0,0.18496254]
[1760654838028,0.66870553,108140.0,108130.0,0.59222188]
[1760654838283,0.18496254,108130.0,108110.0,0.19424313]
[1760654838414,0.18496254,108130.0,108110.0,0.5922508]
[1760654838615,0.18496254,108130.0,108120.0,0.18497965]
[1760654838974,0.18496254,108130.0,108120.0,0.59223899]
[1760654840129,0.18496254,108130.0,108120.0,0.40725934]
[1760654840504,0.18496254,108130.0,108120.0,0.59223899]
[1760654840670,0.18496254,108130.0,108120.0,0.40725934]
[1760654841029,0.18496254,108130.0,108120.0,0.59223899]
[1760654841487,0.18497965,108120.0,108110.0,0.18499146]
[1760654841645,0.18497965,108120.0,108110.0,0.5922508]
[1760654842470,0.20488914,108130.0,108120.0,0.18497965]
[1760654842657,0.18497965,108120.0,108110.0,0.5922508]
[1760654846802,0.20488914,108130.0,108110.0,0.5922508]
[1760654846973,0.18496254,108130.0,108110.0,0.5922508]
[1760654848129,0.18496254,108130.0,108120.0,0.59223899]
[1760654848357,0.18496254,108130.0,108120.0,0.18497965]
[1760654848566,0.66870553,108140.0,108120.0,0.59223899]
[1760654848780,0.18496254,108130.0,108120.0,0.59223899]
[1760654857063,0.59170078,108140.0,108130.0,0.18496254]
[1760654857664,0.59170078,108140.0,108130.0,0.59222188]
[1760654858434,0.10961672,108140.0,108130.0,0.59222188]
[1760654858639,0.18494544,108140.0,108130.0,0.59222188]
[1760654859903,0.18494544,108140.0,108120.0,0.19422863]
[1760654860079,0.18496254,108130.0,108120.0,0.18497965]
[1760654860231,0.18496254,108130.0,108120.0,0.59223899]
[1760654860437,0.18496254,108130.0,108120.0,0.18497965]
[1760654861358,0.2049216,108140.0,108120.0,0.59223899]
[1760654861597,0.18496254,108130.0,108120.0,0.59223899]
[1760654867332,0.29461172,108140.0,108120.0,0.59223899]
[1760654867531,0.27463556,108140.0,108130.0,0.59222188]
[1760654867757,0.27463556,108140.0,108130.0,0.40725934]
[1760654868112,0.18496254,108130.0,108120.0,0.18497965]
[1760654868398,0.18496254,108130.0,108120.0,0.59223899]
[1760654869917,0.18496254,108130.0,108120.0,0.18497965]
[1760654870130,0.18496254,108130.0,108120.0,0.59223899]
[1760654871335,0.18496254,108130.0,108120.0,0.18497965]
[1760654871717,0.18496254,108130.0,108120.0,0.59223899]
[1760654872903,0.18496254,108130.0,108120.0,0.18497965]
[1760654873832,0.18496254,108130.0,108120.0,0.59223899]
[1760654874537,0.18496254,108130.0,108120.0,0.18497965]
[1760654874796,0.18496254,108130.0,108120.0,0.59223899]
[1760654876724,0.18496254,108130.0,108110.0,0.19424129]
[1760654876942,0.18496254,108130.0,108120.0,0.59223899]
[1760654880581,0.18496254,108130.0,108120.0,0.18497965]
[1760654880794,0.18496254,108130.0,108120.0,0.59223899]
[1760654882016,0.18496254,108130.0,108120.0,0.18497965]
[1760654882222,0.18496254,108130.0,108120.0,0.59223899]
[1760654886876,0.18496254,108130.0,108120.0,0.18497965]
[1760654887078,0.18496254,108130.0,108120.0,0.59223899]
[1760654891436,0.18496254,108130.0,108120.0,0.99915607]
[1760654893589,0.18496254,108130.0,108120.0,0.40708821]
[1760654895703,0.18442254,108130.0,108120.0,0.40708821]
[1760654896107,0.18496254,108130.0,108120.0,0.81417642]
[1760654896308,0.18496254,108130.0,108120.0,0.40708821]
[1760654896683,0.18496254,108130.0,108120.0,0.99915607]
[1760654898276,0.32875509,108140.0,108120.0,0.99915607]
[1760654898486,0.30385899,108140.0,108130.0,0.40708821]
[1760654898740,0.58937522,108150.0,108130.0,0.99913896]
[1760654898953,0.67906534,108150.0,108140.0,0.59203365]
[1760654899169,0.67906534,108150.0,108140.0,0.99912186]
[1760654899170,0.5449045,108150.0,108140.0,0.99912186]
[1760654899380,0.5449045,108150.0,108140.0,0.40708821]
[1760654899800,0.5449045,108150.0,108140.0,0.81417642]
[1760654900297,0.5459045,108150.0,108140.0,0.81417642]
[1760654900912,0.5459045,108150.0,108140.0,0.40708821]
[1760654901092,0.55589375,108150.0,108140.0,0.40708821]
[1760654901926,0.02097616,108150.0,108140.0,0.99912186]
[1760654902049,0.001,108150.0,108140.0,0.99912186]
[1760654902448,0.18592834,108150.0,108140.0,0.99912186]
[1760654902906,0.18592834,108150.0,108130.0,0.18496254]
[1760654903105,0.18494544,108140.0,108130.0,0.18496254]
[1760654903438,0.18494544,108140.0,108120.0,0.18497965]
[1760654903439,0.18496254,108130.0,108120.0,0.18497965]
[1760654903643,0.2049216,108140.0,108130.0,0.18496254]
[1760654903763,0.18494544,108140.0,108130.0,0.59205075]
[1760654904170,0.2243158,108150.0,108130.0,0.59205075]
[1760654904374,0.28386487,108150.0,108140.0,1.01143498]
[1760654904579,0.28386487,108150.0,108140.0,0.99912186]
[1760654904802,0.23911804,108160.0,108140.0,0.99912186]
[1760654905035,0.57926864,108160.0,108150.0,0.40708821]
[1760654905288,0.55437254,108160.0,108150.0,0.40708821]
[1760654905755,0.57926864,108160.0,108150.0,0.40708821]
[1760654905966,0.55437254,108160.0,108150.0,0.40708821]
[1760654906169,0.18492834,108150.0,108140.0,0.18494544]
[1760654906374,0.18492834,108150.0,108130.0,0.19421066]
[1760654906592,0.18492834,108150.0,108140.0,0.59203365]
[1760654906969,0.19508978,108150.0,108140.0,0.59203365]
[1760654907325,0.18492834,108150.0,108140.0,0.40708821]
[1760654907550,0.18492834,108150.0,108140.0,0.59203365]
[1760654907737,0.18494544,108140.0,108130.0,0.59204959]
[1760654908922,0.18494544,108140.0,108130.0,0.59304959]
[1760654909330,0.21507256,108150.0,108140.0,0.18494544]
[1760654909574,0.19508978,108150.0,108140.0,0.40708821]
[1760654910181,0.19508978,108150.0,108140.0,0.59203365]
[1760654910597,0.19508978,108150.0,108140.0,0.40708821]
[1760654911571,0.18494544,108140.0,108130.0,0.59204981]
[1760654912203,0.21507256,108150.0,108130.0,0.59204981]
[1760654912416,0.19508978,108150.0,108140.0,0.59203365]
[1760654915598,0.18492834,108150.0,108140.0,0.59203365]
[1760654916160,0.19499919,108150.0,108140.0,0.59203365]
[1760654917559,0.19499919,108150.0,108130.0,0.1849616]
[1760654917823,0.19499919,108150.0,108140.0,0.40708821]
[1760654918301,0.19410919,108150.0,108140.0,0.40708821]
[1760654921368,0.19410919,108150.0,108140.0,0.59203365]
[1760654924253,0.19410919,108150.0,108140.0,0.40708821]
[1760654924657,0.9622294,108160.0,108140.0,0.40708821]
[1760654924876,0.18492834,108150.0,108140.0,0.40708821]
[1760654925034,0.18492834,108150.0,108130.0,0.1849616]
[1760654925422,0.18492834,108150.0,108130.0,0.59204981]
[1760654925665,0.18492834,108150.0,108140.0,0.40708821]
[1760654926181,0.18492834,108150.0,108130.0,0.59204981]
[1760654926387,0.18494544,108140.0,108130.0,0.59204981]
[1760654926598,0.18494544,108140.0,108130.0,0.40708821]
[1760654926761,0.18494544,108140.0,108130.0,0.59205075]
[1760654927382,0.18496254,108130.0,108110.0,0.21280112]
[1760654927735,0.18496254,108130.0,108110.0,0.59208497]
[1760654927943,0.18497965,108120.0,108110.0,0.59208497]
[1760654928488,0.18496254,108130.0,108110.0,0.59208497]
[1760654929494,0.18497965,108120.0,108110.0,0.59208497]
[1760654929902,0.18497965,108120.0,108110.0,0.59308497]
[1760654930104,0.18497965,108120.0,108110.0,0.40808821]
[1760654930318,0.18497965,108120.0,108110.0,0.001]
[1760654930741,0.18497965,108120.0,108110.0,0.40708821]
[1760654930939,0.18499676,108110.0,108100.0,0.59209762]
[1760654931256,0.18497965,108120.0,108100.0,0.59223718]
[1760654931824,0.18499676,108110.0,108100.0,0.59223718]
[1760654932027,0.18497965,108120.0,108100.0,0.99932539]
[1760654932225,0.19499787,108120.0,108110.0,0.59208497]
[1760654932772,0.18497965,108120.0,108110.0,0.59208497]
[1760654933246,0.18497965,108120.0,108110.0,0.59308497]
[1760654934214,0.18497965,108120.0,108110.0,0.40808821]
[1760654935172,0.18497965,108120.0,108110.0,0.59308497]
[1760654938615,0.18497965,108120.0,108110.0,0.001]
[1760654938886,0.18497965,108120.0,108110.0,0.40808821]
[1760654939290,0.18497965,108120.0,108110.0,0.59308497]
[1760654943029,0.23172484,108130.0,108110.0,0.59308497]
[1760654943279,0.18497965,108120.0,108110.0,0.18599676]
[1760654943486,0.18496254,108130.0,108120.0,0.18497965]
[1760654943704,0.18496254,108130.0,108120.0,0.40708821]
[1760654943910,0.18496254,108130.0,108110.0,0.18599676]
[1760654943911,0.18497965,108120.0,108110.0,0.59308497]
[1760654944132,0.18497965,108120.0,108110.0,0.59208497]
[1760654944391,0.18497965,108120.0,108110.0,0.40708821]
[1760654944835,0.18497965,108120.0,108100.0,0.5922414]
[1760654945179,0.18497965,108120.0,108110.0,0.40708821]
[1760654946278,0.18497965,108120.0,108110.0,0.40808821]
[1760654946478,0.18497965,108120.0,108110.0,0.001]
[1760654948426,0.18497965,108120.0,108110.0,0.18599676]
[1760654949042,0.18497965,108120.0,108110.0,0.001]
[1760654949634,0.18497965,108120.0,108110.0,0.40808821]
[1760654953459,0.18497965,108120.0,108110.0,0.001]
[1760654954455,0.18497965,108120.0,108110.0,0.40821401]
[1760654955770,0.18497965,108120.0,108110.0,0.59321077]
[1760654956182,0.21416279,108130.0,108110.0,0.59321077]
[1760654956359,0.28390078,108130.0,108120.0,0.40721401]
[1760654956562,0.28390078,108130.0,108120.0,0.18497965]
[1760654956767,0.19421066,108130.0,108120.0,0.18497965]
[1760654957012,0.18497965,108120.0,108110.0,0.59221077]
[1760654957221,0.20491467,108130.0,108120.0,0.18497965]
[1760654957416,0.20491467,108130.0,108120.0,0.59219366]
[1760654957417,0.18496254,108130.0,108120.0,0.59219366]
[1760654958687,0.18496254,108130.0,108110.0,0.59221077]
[1760654959245,0.18496254,108130.0,108120.0,0.18497965]
[1760654960260,0.18496254,108130.0,108120.0,0.59219366]
[1760654960402,0.20493681,108140.0,108130.0,0.18496254]
[1760654960598,0.18494544,108140.0,108120.0,0.59219366]
[1760654960846,0.18496254,108130.0,108120.0,0.59219366]
[1760654961083,0.18496254,108130.0,108110.0,0.6014606]
[1760654961392,0.18496254,108130.0,108120.0,0.18497965]
[1760654961878,0.18496254,108130.0,108120.0,0.59219366]
[1760654963071,0.18496254,108130.0,108120.0,0.59319366]
[1760654976084,0.18496254,108130.0,108120.0,0.40821401]
[1760654976286,0.18496254,108130.0,108120.0,0.001]
[1760654978202,0.18497965,108120.0,108110.0,0.59220298]
[1760654978962,0.18496254,108130.0,108110.0,0.59220298]
[1760654979730,0.18496254,108130.0,108120.0,0.18497965]
[1760654980238,0.18496254,108130.0,108110.0,0.59320298]
[1760654980239,0.18496254,108130.0,108110.0,0.59220298]
[1760654980798,0.18497965,108120.0,108110.0,0.59220298]
[1760654981041,0.18499676,108110.0,108100.0,0.62017806]
[1760654981244,0.18499676,108110.0,108100.0,0.59236744]
[1760654981501,0.18499676,108110.0,108100.0,0.40735357]
[1760654981674,0.18499676,108110.0,108100.0,0.00013956]
[1760654981845,0.18499676,108110.0,108100.0,0.18515343]
[1760654982310,0.18499676,108110.0,108100.0,0.18615343]
[1760654982695,0.18499676,108110.0,108100.0,0.59336744]
[1760654983106,0.18394894,108110.0,108100.0,0.59336744]
[1760654984256,0.20496283,108120.0,108110.0,0.18499676]
[1760654984455,0.18497965,108120.0,108110.0,0.18499676]
[1760654985368,0.18497965,108120.0,108100.0,0.59336744]
[1760654985675,0.18497965,108120.0,108100.0,0.59236744]
[1760654985883,0.18497965,108120.0,108110.0,0.18599676]
[1760654986525,0.18497965,108120.0,108110.0,0.18499676]
[1760654986926,0.18497965,108120.0,108100.0,0.59236744]
[1760654987782,0.18497965,108120.0,108100.0,0.59336744]
[1760654988435,0.18499676,108110.0,108100.0,0.59336744]
[1760654988793,0.18497965,108120.0,108100.0,0.59336744]
[1760654989390,0.18497965,108120.0,108100.0,0.18615343]
[1760654989559,0.18497965,108120.0,108110.0,0.40721401]
[1760654990032,0.18497965,108120.0,108110.0,0.59221077]
[1760654991308,0.18497965,108120.0,108110.0,0.59321077]
[1760654991725,0.21418357,108130.0,108110.0,0.59321077]
[1760654991726,0.01997291,108130.0,108110.0,0.59321077]
[1760654991933,0.18496254,108130.0,108120.0,0.59219366]
[1760654992427,0.18496254,108130.0,108110.0,0.18599676]
[1760654992428,0.18496254,108130.0,108110.0,0.59321077]
[1760654992640,0.18497965,108120.0,108110.0,0.40821401]
[1760654992839,0.18497965,108120.0,108110.0,0.18599676]
[1760654993842,0.18497965,108120.0,108110.0,0.18499676]
[1760654995422,0.18497965,108120.0,108110.0,0.18599676]
[1760655001390,0.18497965,108120.0,108110.0,0.001]
[1760655003653,0.18497965,108120.0,108110.0,0.59321077]
[1760655004372,0.18497965,108120.0,108110.0,0.18599676]
[1760655004875,0.18497965,108120.0,108110.0,0.001]
[1760655006386,0.18497965,108120.0,108110.0,0.40821401]
[1760655008532,0.18497965,108120.0,108110.0,0.59321077]
[1760655010864,0.27348578,108130.0,108110.0,0.59321077]
[1760655011190,0.18497965,108120.0,108110.0,0.18599676]
[1760655012245,0.18497965,108120.0,108110.0,0.59321077]
[1760655014790,0.10966303,108130.0,108110.0,0.59321077]
[1760655014997,0.23913688,108150.0,108130.0,0.18496254]
[1760655015193,0.10966303,108150.0,108140.0,0.40721401]
[1760655015550,0.10788693,108150.0,108140.0,0.81380798]
[1760655015706,0.10788693,108150.0,108140.0,0.99875342]
[1760655015909,0.08969012,108150.0,108140.0,0.99875342]
[1760655016254,0.35997291,108160.0,108150.0,0.18492834]
[1760655016484,0.29211215,108160.0,108150.0,0.59183233]
[1760655016684,0.29211215,108160.0,108150.0,0.40690399]
[1760655016861,0.27465156,108160.0,108150.0,0.40690399]
[1760655017060,0.27465156,108160.0,108150.0,0.59183233]
[1760655017260,0.27465156,108160.0,108150.0,0.40690399]
[1760655017420,0.27465156,108160.0,108150.0,0.59183233]
[1760655017825,5.02e-05,108160.0,108150.0,0.59183233]
[1760655018434,5.02e-05,108160.0,108150.0,0.99873632]
[1760655021965,5.02e-05,108160.0,108150.0,0.18492834]
[1760655022375,5.02e-05,108160.0,108150.0,0.59183233]
[1760655022601,0.18496144,108160.0,108150.0,0.59183233]
[1760655022820,0.18496144,108160.0,108150.0,0.40690399]
[1760655023807,0.18496144,108160.0,108150.0,0.59183233]
[1760655025185,0.18496144,108160.0,108150.0,0.40690399]
[1760655025384,0.18496144,108160.0,108140.0,0.59184943]
[1760655025385,0.27465156,108160.0,108140.0,0.59184943]
[1760655025543,0.27465156,108160.0,108150.0,0.18492834]
[1760655026926,0.27465156,108160.0,108140.0,0.59184943]
[1760655027302,0.27465156,108160.0,108150.0,0.59183233]
[1760655027680,0.18491124,108160.0,108150.0,0.59183233]
[1760655028651,0.18491124,108160.0,108150.0,0.18492834]
[1760655030919,0.18491124,108160.0,108150.0,0.59183233]
[1760655032202,0.18491124,108160.0,108140.0,0.18494544]
[1760655032448,0.18494544,108140.0,108130.0,0.55212953]
[1760655032644,0.18492834,108150.0,108130.0,0.94111465]
[1760655033063,0.18492834,108150.0,108140.0,0.18494544]
[1760655033275,0.18492834,108150.0,108140.0,0.59184943]
[1760655033487,0.18492834,108150.0,108140.0,0.40690399]
[1760655033697,0.18492834,108150.0,108140.0,0.59184943]
[1760655034030,0.28384692,108160.0,108140.0,0.59184943]
[1760655034688,0.18492834,108150.0,108140.0,0.59184943]
[1760655035302,0.28384692,108160.0,108140.0,0.99875342]
[1760655035537,0.28384692,108160.0,108150.0,0.59183233]
[1760655035724,0.08969012,108160.0,108150.0,0.59183233]
[1760655035890,0.18490233,108170.0,108150.0,0.59183233]
[1760655036078,0.27459245,108170.0,108160.0,0.59181523]
[1760655036475,0.27459245,108170.0,108160.0,0.40690399]
[1760655036888,0.27559245,108170.0,108160.0,0.59181523]
[1760655037267,0.27459245,108170.0,108160.0,0.59181523]
[1760655037468,0.27559245,108170.0,108160.0,0.59181523]
[1760655038454,0.27558426,108170.0,108160.0,0.59181523]
[1760655038660,0.09069012,108170.0,108160.0,0.59181523]
[1760655038874,0.001,108170.0,108160.0,0.99871922]
[1760655039431,0.18487714,108180.0,108170.0,0.18489414]
[1760655039633,0.18537995,108180.0,108170.0,0.59179813]
[1760655040802,0.18489414,108170.0,108160.0,0.18491124]
[1760655040972,0.18489414,108170.0,108160.0,0.40690399]
[1760655041172,0.18489414,108170.0,108160.0,0.59181523]
[1760655041552,0.18489414,108170.0,108160.0,0.40690399]
[1760655041764,0.18489414,108170.0,108160.0,0.59181523]
[1760655042488,0.21455313,108180.0,108160.0,0.99871922]
[1760655042729,0.21455313,108180.0,108170.0,0.40690399]
[1760655042730,0.1946238,108180.0,108170.0,0.40690399]
[1760655042912,0.1946238,108180.0,108170.0,0.59179813]
[1760655043327,0.18537986,108180.0,108170.0,0.59179813]
[1760655043761,0.18537986,108180.0,108170.0,0.40690399]
[1760655046361,0.20530919,108180.0,108170.0,0.40690399]
[1760655046932,0.00050281,108180.0,108170.0,0.99870212]
[1760655047167,0.18537986,108180.0,108170.0,0.59179813]
[1760655048648,0.18537986,108180.0,108170.0,0.18489414]
[1760655048920,0.18537986,108180.0,108170.0,0.40690399]
[1760655049145,0.18489414,108170.0,108160.0,0.59181523]
[1760655053583,0.18489414,108170.0,108160.0,0.99871922]
[1760655055081,0.1682878,108180.0,108160.0,0.59181523]
[1760655055291,0.18489414,108170.0,108160.0,0.59181523]
[1760655055496,0.18489414,108170.0,108160.0,0.99871922]
[1760655055877,0.18489414,108170.0,108160.0,0.59181523]
[1760655056143,0.18489414,108170.0,108160.0,0.18491124]
[1760655056286,0.14835847,108180.0,108160.0,0.59181523]
[1760655056522,0.62095044,108190.0,108160.0,0.59181523]
[1760655056523,0.57611152,108190.0,108160.0,0.59181523]
[1760655056688,0.18489259,108180.0,108160.0,0.59181523]
[1760655056888,0.2589479,108190.0,108170.0,0.59179813]
[1760655057097,0.23901857,108190.0,108180.0,0.40690399]
[1760655057275,0.27460033,108190.0,108180.0,0.59178104]
[1760655058215,0.27460033,108190.0,108180.0,0.40690399]
[1760655060609,5.025e-05,108190.0,108180.0,0.59178104]
[1760655060820,0.18491021,108190.0,108180.0,0.40690399]
[1760655061038,0.18487705,108180.0,108170.0,0.59179813]
[1760655061864,0.18487705,108180.0,108170.0,0.40690399]
[1760655062078,0.18487705,108180.0,108170.0,0.59179813]
[1760655064079,0.18487705,108180.0,108170.0,0.40690399]
[1760655064289,0.18487705,108180.0,108160.0,0.59181062]
[1760655064743,0.18489414,108170.0,108160.0,0.59181062]
[1760655066933,0.18491124,108160.0,108150.0,0.18491846]
[1760655067135,0.20486826,108170.0,108150.0,0.59182245]
[1760655067322,0.18489414,108170.0,108160.0,0.40690399]
[1760655067686,0.18489414,108170.0,108150.0,0.59182245]
[1760655067816,0.18489414,108170.0,108160.0,0.40690399]
[1760655068659,0.18489414,108170.0,108150.0,0.18491846]
[1760655068861,0.18489414,108170.0,108160.0,0.40690399]
[1760655070264,0.18491124,108160.0,108150.0,0.59182245]
[1760655070467,0.18489414,108170.0,108150.0,0.59182245]
[1760655070697,0.18489414,108170.0,108160.0,0.40690399]
[1760655071013,0.18489414,108170.0,108160.0,0.59181523]
[1760655071216,0.18489414,108170.0,108140.0,1.0341767]
[1760655071217,0.18491124,108160.0,108140.0,0.53419271]
[1760655071462,0.18491124,108160.0,108150.0,0.59183233]
[1760655071588,0.18492834,108150.0,108140.0,0.9410967]
[1760655071792,0.18491124,108160.0,108140.0,1.34800069]
[1760655072008,0.18491124,108160.0,108150.0,0.40690399]
[1760655072209,0.18491124,108160.0,108150.0,0.59183233]
[1760655072592,0.18491124,108160.0,108150.0,0.40690399]
[1760655072743,0.18491124,108160.0,108150.0,0.59233514]
[1760655073777,0.18491124,108160.0,108150.0,0.4074068]
[1760655073979,0.18491124,108160.0,108150.0,0.59233514]
[1760655074970,0.21411814,108170.0,108160.0,0.18491124]
[1760655075171,0.19413884,108170.0,108160.0,0.59181523]
[1760655075372,0.19413884,108170.0,108160.0,0.59171306]
[1760655076215,0.18489414,108170.0,108160.0,0.59171306]
[1760655079081,0.23050456,108180.0,108160.0,0.59171306]
[1760655079252,0.18489414,108170.0,108160.0,0.59171306]
[1760655079661,0.32019468,108180.0,108160.0,0.59171306]
[1760655079859,0.30022353,108180.0,108160.0,0.59171306]
[1760655080074,0.18489414,108170.0,108160.0,0.59171306]
[1760655081073,0.32019468,108180.0,108160.0,0.59171306]
[1760655081271,0.30022353,108180.0,108160.0,0.59171306]
[1760655081478,0.18489414,108170.0,108160.0,0.59171306]
[1760655081966,0.18489414,108170.0,108160.0,0.18491124]
[1760655082154,0.18489414,108170.0,108150.0,0.19467756]
[1760655082458,0.18489414,108170.0,108160.0,0.18491124]
[1760655083887,0.32019468,108180.0,108160.0,0.59171306]
[1760655084087,0.18489414,108170.0,108160.0,0.59171306]
[1760655084746,0.32019468,108180.0,108160.0,0.59171306]
[1760655084953,0.30022353,108180.0,108160.0,0.59171306]
[1760655085107,0.18489414,108170.0,108160.0,0.59171306]
[1760655085309,0.32019468,108180.0,108160.0,0.59171306]
[1760655085477,0.18489414,108170.0,108160.0,0.59171306]
[1760655086792,0.18489414,108170.0,108160.0,0.40680182]
[1760655086990,0.18489414,108170.0,108150.0,0.60147938]
[1760655087893,0.18491124,108160.0,108150.0,0.19467756]
[1760655088622,0.18491124,108160.0,108150.0,0.59223297]
[1760655088824,0.18491124,108160.0,108150.0,0.18543115]
[1760655089070,0.20486886,108170.0,108150.0,0.18543115]
[1760655089243,0.18491124,108160.0,108150.0,0.18543115]
[1760655089927,0.20486886,108170.0,108150.0,0.18543115]
[1760655090126,0.18489414,108170.0,108150.0,0.18543115]
[1760655090523,0.18489414,108170.0,108150.0,0.59223297]
[1760655090969,0.18489414,108170.0,108160.0,0.18491124]
[1760655091341,0.18489414,108170.0,108160.0,0.59171306]
[1760655091544,0.18409414,108170.0,108160.0,0.59171306]
[1760655092796,0.18209414,108170.0,108160.0,0.59171306]
[1760655094271,0.18489414,108170.0,108160.0,0.59171306]
[1760655094732,0.18489414,108170.0,108160.0,0.40680182]
[1760655095076,0.18491124,108160.0,108150.0,0.59223297]
[1760655095295,0.20486886,108170.0,108150.0,0.18543115]
[1760655095490,0.18491124,108160.0,108150.0,0.18543115]
[1760655096430,0.29455898,108170.0,108150.0,0.18543115]
[1760655096592,0.18491124,108160.0,108150.0,0.18543115]
[1760655096774,0.29455898,108170.0,108150.0,0.18543115]
[1760655096976,0.27458426,108170.0,108150.0,0.18543115]
[1760655097646,0.18491124,108160.0,108150.0,0.59223297]
[1760655097785,0.18491124,108160.0,108150.0,0.18543115]
[1760655098652,0.29455898,108170.0,108150.0,0.18543115]
[1760655098902,0.27458426,108170.0,108160.0,0.18491124]
[1760655101799,0.08969012,108170.0,108160.0,0.18491124]
[1760655101998,0.27458426,108170.0,108160.0,0.18491124]
[1760655107380,0.08969012,108170.0,108160.0,0.18491124]
[1760655107986,0.27458426,108170.0,108160.0,0.18491124]
[1760655108192,0.30238828,108170.0,108160.0,0.18491124]
[1760655112137,0.18491124,108160.0,108150.0,0.59223297]
[1760655112806,0.21271526,108160.0,108150.0,0.59223297]
[1760655114557,0.02780402,108160.0,108150.0,0.59223297]
[1760655120635,0.02780402,108160.0,108150.0,0.18543115]
[1760655120903,0.02780402,108160.0,108150.0,1.01413434]
[1760655121116,0.27262842,108200.0,108180.0,0.18487705]
[1760655121337,0.27455008,108190.0,108170.0,0.59168053]
[1760655121544,0.02779915,108180.0,108170.0,0.59168053]
[1760655121747,0.02779915,108180.0,108160.0,0.60092869]
[1760655122364,0.02779915,108180.0,108170.0,0.18489414]
[1760655123528,0.02779915,108180.0,108170.0,0.59169596]
[1760655124564,0.2126762,108180.0,108160.0,0.60092869]
[1760655124764,0.18489414,108170.0,108160.0,0.18491012]
[1760655124997,0.29455789,108180.0,108160.0,0.18491012]
[1760655125175,0.18489414,108170.0,108160.0,0.18491012]
[1760655125416,0.21269597,108170.0,108160.0,0.18491012]
[1760655126646,0.21269597,108170.0,108150.0,0.60147938]
[1760655126846,0.21269597,108170.0,108160.0,0.18491124]
[1760655126996,0.29454545,108180.0,108160.0,0.18491124]
[1760655127208,0.27456717,108180.0,108160.0,0.18491124]
[1760655127392,0.02780183,108170.0,108160.0,0.18491124]
[1760655128912,0.02780183,108170.0,108160.0,0.59171306]
[1760655136993,0.21269597,108170.0,108160.0,0.18491124]
[1760655137195,0.18489414,108170.0,108150.0,0.60147938]
[1760655137396,0.18489414,108170.0,108160.0,0.18491124]
[1760655138676,0.21269597,108170.0,108160.0,0.18491124]
[1760655139904,0.61957787,108170.0,108150.0,0.18543115]
[1760655140114,0.61957787,108170.0,108150.0,0.59231305]